fUST/lending_fUST_20240822
["ID","MTS","AMOUNT","RATE_DAILY","PERIOD"]
[335475913,1724256638191,-179.262501,0.00014247,2]
[335475914,1724256638202,-413.0,0.00019,2]
[335475915,1724256638213,-2916.87485631,0.00019102,2]
[335475916,1724256638222,-500.0,0.00019385,2]
[335475917,1724256638233,-500.0,0.00019435,2]
[335475918,1724256638242,-500.0,0.00019457,2]
[335475919,1724256638253,-500.0,0.00019534,2]
[335475920,1724256638272,-500.0,0.00019997,2]
[335475921,1724256638282,-500.0,0.0002017,2]
[335475922,1724256638291,-500.0,0.00020574,2]
[335475923,1724256638300,-179.262501,0.00020707,2]
[335475925,1724256638310,-170.626095,0.00020948,2]
[335475927,1724256638319,-169.099886,0.00020969,2]
[335475928,1724256638329,-500.0,0.00020998,2]
[335475929,1724256638341,-500.0,0.00021222,2]
[335475930,1724256638351,-500.0,0.00021381,2]
[335475931,1724256638362,-500.0,0.00021831,2]
[335475932,1724256638371,-169.701791,0.00021965,2]
[335475933,1724256638382,-500.0,0.00022249,2]
[335475934,1724256638391,-169.701791,0.00022538,2]
[335475935,1724256638400,-500.0,0.00022791,2]
[335475936,1724256638410,-169.701791,0.0002311,2]
[335475937,1724256638420,-500.0,0.00023572,2]
[335475938,1724256638430,-500.0,0.00024008,2]
[335475939,1724256638440,-500.0,0.0002422,2]
[335475940,1724256638451,-500.0,0.0002423,2]
[335475941,1724256638461,-500.0,0.00024434,2]
[335475942,1724256638470,-4998.24465256,0.00024498,2]
[335475943,1724256638480,-2640.65836955,0.000246,2]
[335475944,1724256638489,-882.99597685,0.000246,2]
[335475945,1724256638498,-277.68803325,0.00024651,2]
[335475946,1724256638508,-40000.0,0.0002497,2]
[335475947,1724256638519,-500.0,0.00025068,2]
[335475948,1724256638529,-500.0,0.00025171,2]
[335475949,1724256638538,-500.0,0.00025264,2]
[335475950,1724256638549,-500.0,0.00025489,2]
[335475951,1724256638560,-500.0,0.00026078,2]
[335475952,1724256638569,-500.0,0.00026488,2]
[335475953,1724256638579,-500.0,0.0002695,2]
[335475954,1724256638590,-179.262501,0.00027167,2]
[335475955,1724256638600,-500.0,0.00027395,2]
[335475956,1724256638610,-500.0,0.00027522,2]
[335475957,1724256638620,-500.0,0.00027896,2]
[335475958,1724256638631,-500.0,0.00027934,2]
[335475959,1724256638641,-500.0,0.00028097,2]
[335475960,1724256638653,-500.0,0.00028128,2]
[335475961,1724256638662,-500.0,0.00028172,2]
[335475962,1724256638673,-500.0,0.00028659,2]
[335475963,1724256638683,-500.0,0.00029035,2]
[335475964,1724256638694,-500.0,0.00029195,2]
[335475965,1724256638704,-673.14098692,0.00029801,2]
[335475966,1724256638714,-28900.5901189,0.00029979,60]
[335475967,1724256638725,-10000.0,0.0003,20]
[335475968,1724256638736,-178.72751622,0.0003,5]
[335475969,1724256638747,-10000.0,0.0003,4]
[335475970,1724256638757,-10000.0,0.0003,6]
[335475971,1724256638769,-10000.0,0.0003,8]
[335475972,1724256638779,-10000.0,0.0003,10]
[335475973,1724256638792,-1494.5714056,0.0003,12]
[335475974,1724256638804,-462.06561387,0.0003,30]
[335475975,1724256638814,-309.0,0.0003,2]
[335475976,1724256638824,-309.0,0.00030411,2]
[335475977,1724256638836,-31057.2862059,0.0003042,4]
[335475978,1724256638847,-31057.2862059,0.0003043,4]
[335475979,1724256638856,-500.0,0.00030439,2]
[335475980,1724256638866,-334.74242611,0.00030439,2]
[335475981,1724256638875,-500.0,0.00030439,2]
[335475982,1724256638891,-210.11560123,0.00030439,2]
[335475983,1724256638902,-500.0,0.00030439,2]
[335475984,1724256638913,-500.0,0.00030439,2]
[335475985,1724256638924,-500.0,0.00030439,2]
[335475986,1724256638935,-330.41349912,0.00030439,2]
[335475987,1724256638945,-500.0,0.00030439,2]
[335475988,1724256638954,-500.0,0.00030439,2]
[335475989,1724256638964,-500.0,0.00030439,2]
[335475990,1724256638973,-31057.2862059,0.0003044,4]
[335475991,1724256638983,-31057.2862059,0.0003045,4]
[335475992,1724256638993,-3503.91622224,0.0003054,2]
[335475993,1724256639003,-31057.2862059,0.0003072,4]
[335475994,1724256639303,-12864.09555103,0.0003074,4]
[335475995,1724256640230,-2214.01091419,0.00029949,3]
[335475996,1724256640283,-6498.3800724,0.00029949,3]
[335475997,1724256640296,-1686.74766495,0.00029949,3]
[335476025,1724256643239,-295.835,0.00024577,2]
[335476026,1724256643347,-2344.82336955,0.00024577,2]
[335476027,1724256643360,-35187.67134846,0.00029949,3]
[335476028,1724256643372,-27402.34656516,0.00029959,15]
[335476029,1724256643383,-18193.19065487,0.0003074,4]
[335476030,1724256643394,-151.0,0.00030875,3]
[335476031,1724256643406,-9186.23842736,0.00031,21]
[335476032,1724256643421,-813.76157264,0.00031,21]
[335476033,1724256643433,-1000.0,0.00031,31]
[335476034,1724256643444,-3503.91622222,0.00031055,2]
[335476035,1724256643456,-3747.10584104,0.00031111,2]
[335476397,1724256793321,16290.7484913,0.00013971,2]
[335476398,1724256878563,500.0,8.2e-07,120]
[335476399,1724256951978,2263.564877,8.2e-07,2]
[335476406,1724257705533,544.00882293,5e-05,2]
[335476430,1724257774211,-300.0,0.00011986,2]
[335476431,1724257774234,-56.63213937,0.00011986,2]
[335476436,1724257815285,404.84684533,5e-05,2]
[335476517,1724257838204,-300.0,0.00011841,2]
[335476518,1724257838215,-300.0,0.00011841,2]
[335476519,1724257838226,-201.0144744,0.00012083,2]
[335476521,1724257838237,-5400.23466317,0.00012163,2]
[335476523,1724257838248,-1405.00053676,0.00012551,2]
[335476525,1724257838260,-12538.2006489,0.00012616,2]
[335476526,1724257838270,-811.38667937,0.00012898,2]
[335476528,1724257838280,-413.66267349,0.00012971,2]
[335476530,1724257838290,-196.66364967,0.00012971,2]
[335476531,1724257838302,-569.55611374,0.00012985,2]
[335476532,1724257838313,-160.44466579,0.00012985,2]
[335476533,1724257838324,-154.74467129,0.00012985,2]
[335476534,1724257838336,-688.676981,0.00012991,2]
[335476535,1724257838345,-862.44048895,0.00013,2]
[335476536,1724257838354,-420.0,0.00013001,2]
[335476537,1724257838363,-215.09903404,0.00013025,2]
[335476538,1724257838373,-210.0,0.00013025,2]
[335476539,1724257838382,-446.08518865,0.000132,2]
[335476540,1724257838391,-400.48555915,0.00013698,2]
[335476541,1724257838401,-500.0,0.00013698,2]
[335476542,1724257838410,-510.0669066,0.00013698,2]
[335476543,1724257838420,-153.69977451,0.00013698,2]
[335476544,1724257838429,-194.82337617,0.00013699,2]
[335476545,1724257838627,-500.0,0.00013699,2]
[335476546,1724257838638,-387.78124992,0.00013699,2]
[335476547,1724257838647,-500.0,0.00013699,2]
[335476548,1724257838657,-196.84193323,0.00013699,2]
[335476549,1724257838667,-500.0,0.00013699,2]
[335476550,1724257838678,-500.0,0.00013699,2]
[335476551,1724257838690,-500.0,0.00013699,2]
[335476552,1724257838702,-500.0,0.00013699,2]
[335476553,1724257838713,-500.0,0.00013699,2]
[335476554,1724257838724,-271.89423507,0.00013699,2]
[335476555,1724257838735,-161.649171,0.00013733,2]
[335476556,1724257838748,-500.0,0.00013767,2]
[335476557,1724257838758,-161.649171,0.00013822,2]
[335476558,1724257838770,-161.649171,0.00013912,2]
[335476559,1724257838781,-2400.00000014,0.00013971,2]
[335476560,1724257838792,-154.79103211,0.00013971,2]
[335476561,1724257838803,-161.649171,0.00014001,2]
[335476562,1724257838816,-166.882545,0.00014014,2]
[335476563,1724257838827,-166.882545,0.00014028,2]
[335476564,1724257838838,-166.882545,0.00014042,2]
[335476565,1724257838848,-166.882545,0.00014056,2]
[335476566,1724257838859,-166.882545,0.0001407,2]
[335476567,1724257838868,-166.882545,0.00014084,2]
[335476568,1724257838878,-161.649171,0.00014091,2]
[335476569,1724257838889,-161.649171,0.0001418,2]
[335476570,1724257838899,-175.926302,0.00014247,2]
[335476571,1724257838910,-181.552265,0.00014247,2]
[335476572,1724257838922,-161.649171,0.0001427,2]
[335476573,1724257838933,-1000.0,0.00014315,2]
[335476574,1724257838942,-161.649171,0.00014359,2]
[335476575,1724257838951,-161.649171,0.00014448,2]
[335476576,1724257838961,-574.18002641,0.00015,2]
[335476577,1724257838979,-154.74467129,0.00015,2]
[335476578,1724257838988,-1500.0,0.00015213,2]
[335476579,1724257838999,-4772.24505505,0.00015955,2]
[335476580,1724257839009,-1694.30720775,0.00016,2]
[335476581,1724257839019,-200.0,0.00016318,2]
[335476582,1724257839029,-10343.5134042,0.00017898,2]
[335476583,1724257839040,-1000.0,0.00019046,2]
[335476584,1724257839050,-4772.24505505,0.00019113,2]
[335476585,1724257839060,-170.626096,0.00019178,2]
[335476586,1724257839069,-168.794644,0.00019178,2]
[335476587,1724257839079,-500.0,0.00019194,2]
[335476588,1724257839089,-500.0,0.000194,2]
[335476589,1724257839098,-292.3697565,0.00019452,2]
[335476590,1724257839109,-1000.0,0.00019518,2]
[335476591,1724257839119,-1000.0,0.00019603,2]
[335476592,1724257839130,-500.0,0.00019633,2]
[335476593,1724257839140,-1000.0,0.0001989,2]
[335476594,1724257839151,-37433.8279356,0.00019989,2]
[335476595,1724257839161,-28900.5901179,0.00019999,30]
[335476596,1724257839171,-435.0,0.0002,2]
[335476597,1724257839183,-183.32510841,0.0002,2]
[335476598,1724257839194,-285.48087373,0.0002,2]
[335476599,1724257839205,-154.74467129,0.0002,2]
[335476600,1724257839217,-4093.99724662,0.0002,2]
[335476601,1724257839226,-156.66298998,0.0002,2]
[335476602,1724257839235,-5327.81921818,0.0002,2]
[335476603,1724257839245,-172.08510632,0.0002,2]
[335476604,1724257839254,-350.0,0.0002,7]
[335476605,1724257839263,-1000.0,0.00020007,2]
[335476606,1724257839273,-500.0,0.00020105,2]
[335476607,1724257839281,-1000.0,0.00020192,2]
[335476608,1724257839291,-500.0,0.00020304,2]
[335476609,1724257839300,-1000.0,0.00020343,2]
[335476610,1724257839309,-201.28991957,0.00020373,2]
[335476611,1724257839318,-500.0,0.00020373,2]
[335476612,1724257839327,-500.0,0.00020373,2]
[335476613,1724257839336,-500.0,0.00020373,2]
[335476614,1724257839346,-401.02347447,0.00020373,2]
[335476615,1724257839355,-504.54855206,0.00020373,2]
[335476616,1724257839365,-605.32084287,0.00020376,2]
[335476617,1724257839374,-300.16514461,0.00020376,2]
[335476618,1724257839383,-500.0,0.00020376,2]
[335476619,1724257839393,-500.0,0.00020376,2]
[335476620,1724257839402,-500.0,0.00020376,2]
[335476621,1724257839412,-500.0,0.00020376,2]
[335476622,1724257839421,-500.0,0.00020376,2]
[335476623,1724257839430,-500.0,0.00020376,2]
[335476624,1724257839440,-500.0,0.00020376,2]
[335476625,1724257839449,-500.0,0.00020376,2]
[335476626,1724257839458,-500.0,0.00020376,2]
[335476627,1724257839469,-500.0,0.00020376,2]
[335476628,1724257839479,-365.52809482,0.00020376,2]
[335476629,1724257839488,-500.0,0.00020376,2]
[335476630,1724257839497,-500.0,0.00020376,2]
[335476631,1724257839506,-500.0,0.00020376,2]
[335476632,1724257839515,-500.0,0.00020376,2]
[335476633,1724257839525,-120106.70625485,0.00020377,2]
[335476634,1724257839534,-500.0,0.00020453,2]
[335476635,1724257839543,-500.0,0.00020549,2]
[335476636,1724257839552,-5386.44821665,0.00020551,15]
[335476637,1724257839562,-4256.67382559,0.0002066,7]
[335476638,1724257839571,-500.0,0.00020666,2]
[335476639,1724257839580,-181.552265,0.00020707,2]
[335476640,1724257839590,-1000.0,0.00020921,2]
[335476641,1724257839599,-661.32016401,0.00020921,2]
[335476642,1724257839608,-401.4765779,0.00020921,2]
[335476643,1724257839617,-5000.0,0.00021,2]
[335476644,1724257839626,-258.55026975,0.00021,2]
[335476645,1724257839636,-5711.76414089,0.00021,2]
[335476646,1724257839645,-10148.06234563,0.00021,2]
[335476647,1724257839654,-233.00336597,0.00021,2]
[335476648,1724257839663,-477.7784862,0.00021075,2]
[335476649,1724257839673,-466.20293842,0.00021109,2]
[335476650,1724257839682,-504.39808835,0.000212,2]
[335476651,1724257839692,-1000.0,0.00021396,2]
[335476652,1724257839701,-1000.0,0.00021475,2]
[335476653,1724257839710,-1000.0,0.00021669,2]
[335476654,1724257839721,-500.0,0.00021754,2]
[335476655,1724257839730,-1500.0,0.00021819,2]
[335476656,1724257839739,-37433.8279356,0.00021908,3]
[335476657,1724257839749,-151.0,0.00021908,2]
[335476658,1724257839758,-151.0,0.00021908,2]
[335476659,1724257839768,-151.0,0.00021908,2]
[335476660,1724257839777,-151.0,0.00021908,2]
[335476661,1724257839787,-151.0,0.00021908,2]
[335476663,1724257839797,-151.0,0.00021908,2]
[335476664,1724257839807,-151.0,0.00021908,2]
[335476665,1724257839816,-20977.2963545,0.00021918,2]
[335476666,1724257839826,-809.955,0.00021918,2]
[335476667,1724257839835,-809.955,0.00021918,2]
[335476668,1724257839844,-1000.0,0.00021919,2]
[335476669,1724257839854,-218.01699193,0.00022,2]
[335476670,1724257839863,-260.03734747,0.00022,2]
[335476671,1724257839873,-154.78144652,0.00022,2]
[335476672,1724257839882,-1000.0,0.00022173,2]
[335476673,1724257839891,-4772.24505505,0.0002227,2]
[335476674,1724257839901,-1314.02705259,0.000223,2]
[335476675,1724257839910,-500.0,0.00022457,2]
[335476676,1724257839919,-1000.0,0.00022619,2]
[335476677,1724257839930,-500.0,0.00022664,2]
[335476678,1724257839940,-500.0,0.00022842,2]
[335476679,1724257839949,-500.0,0.00022871,2]
[335476680,1724257839959,-2000.0,0.00022924,2]
[335476683,1724257839968,-1000.0,0.00022962,2]
[335476685,1724257839978,-239.54490623,0.00023,2]
[335476687,1724257839987,-11402.02376786,0.00023,2]
[335476689,1724257839996,-201.50174106,0.00023,2]
[335476691,1724257840006,-1000.0,0.0002305,2]
[335476693,1724257840014,-1000.0,0.00023335,2]
[335476695,1724257840024,-1000.0,0.00023581,2]
[335476697,1724257840033,-1000.0,0.00023648,2]
[335476700,1724257840043,-1000.0,0.00023735,2]
[335476702,1724257840052,-256.9,0.00023741,2]
[335476704,1724257840061,-3490.85241648,0.00023884,2]
[335476706,1724257840070,-452.63918642,0.00023984,2]
[335476708,1724257840079,-74126.46421553,0.00024,60]
[335476710,1724257840088,-154.481647,0.00024,7]
[335476711,1724257840097,-151.0,0.00024,7]
[335476712,1724257840106,-151.0,0.00024,7]
[335476713,1724257840115,-151.0,0.00024,7]
[335476714,1724257840124,-809.955,0.00024,7]
[335476715,1724257840134,-809.955,0.00024,7]
[335476716,1724257840142,-3566.74,0.00024,14]
[335476717,1724257840151,-151.0,0.00024,7]
[335476718,1724257840160,-151.0,0.00024,7]
[335476719,1724257840169,-2500.0,0.00024189,2]
[335476720,1724257840179,-500.0,0.00024237,2]
[335476721,1724257840187,-37693.93779019,0.00024329,2]
[335476722,1724257840196,-500.0,0.00024391,2]
[335476723,1724257840206,-1000.0,0.00024464,2]
[335476724,1724257840216,-500.0,0.00024639,2]
[335476725,1724257840225,-380.0,0.00024658,2]
[335476726,1724257840234,-631.83554832,0.00024658,2]
[335476727,1724257840244,-953.53947811,0.00024658,2]
[335476728,1724257840253,-1110.9613583,0.00024688,2]
[335476729,1724257840263,-161.666964,0.000247,4]
[335476730,1724257840272,-882.99597685,0.00024728,2]
[335476731,1724257840281,-277.68803325,0.00024756,2]
[335476732,1724257840291,-256.9,0.00024759,2]
[335476734,1724257840300,-1000.0,0.00024898,2]
[335476736,1724257840310,-1000.0,0.00024999,2]
[335476737,1724257840319,-154.74467129,0.00025,2]
[335476738,1724257840328,-369.96805713,0.00025,30]
[335476739,1724257840337,-191.34123187,0.00025,2]
[335476740,1724257840346,-165.0,0.00025,2]
[335476741,1724257840356,-199.0,0.00025,2]
[335476742,1724257840365,-1000.0,0.00025318,2]
[335476743,1724257840375,-150.112233,0.000254,6]
[335476744,1724257840384,-4772.24505505,0.00025428,2]
[335476745,1724257840394,-151.0,0.00025428,7]
[335476746,1724257840403,-151.0,0.00025428,7]
[335476747,1724257840412,-151.0,0.00025428,7]
[335476748,1724257840421,-809.955,0.00025428,7]
[335476749,1724257840430,-809.955,0.00025428,7]
[335476750,1724257840440,-1000.0,0.00025569,2]
[335476751,1724257840449,-151.0,0.00025588,7]
[335476752,1724257840458,-151.0,0.00025588,7]
[335476753,1724257840469,-3000.0,0.00025588,2]
[335476754,1724257840478,-3490.85241648,0.00025666,2]
[335476755,1724257840488,-1000.0,0.00025688,2]
[335476756,1724257840497,-37433.8279356,0.00025756,3]
[335476757,1724257840507,-1000.0,0.00025766,2]
[335476758,1724257840516,-256.9,0.00025776,2]
[335476760,1724257840526,-1000.0,0.0002583,2]
[335476761,1724257840535,-165.0,0.0002589,2]
[335476762,1724257840544,-3566.74,0.000259,14]
[335476763,1724257840554,-500.0,0.00025951,2]
[335476764,1724257840563,-500.0,0.00025959,2]
[335476765,1724257840572,-5000.0,0.00026,2]
[335476766,1724257840582,-1000.0,0.00026004,2]
[335476767,1724257840591,-150.112233,0.000262,9]
[335476768,1724257840600,-1000.0,0.00026215,2]
[335476769,1724257840610,-500.0,0.00026341,2]
[335476770,1724257840619,-1000.0,0.00026417,2]
[335476771,1724257840629,-1000.0,0.00026676,2]
[335476772,1724257840638,-256.9,0.00026793,2]
[335476773,1724257840647,-500.0,0.00026873,2]
[335476774,1724257840656,-150.112233,0.000269,10]
[335476775,1724257840665,-500.0,0.00026935,2]
[335476776,1724257840674,-500.0,0.00026965,2]
[335476777,1724257840684,-300.0,0.00027105,2]
[335476778,1724257840693,-500.0,0.00027153,2]
[335476779,1724257840702,-181.552265,0.00027167,2]
[335476780,1724257840711,-207.87011392,0.00027397,2]
[335476781,1724257840721,-933.95747527,0.00027397,2]
[335476782,1724257840730,-151.0,0.00027397,7]
[335476783,1724257840740,-151.0,0.00027397,7]
[335476784,1724257840749,-151.0,0.00027397,7]
[335476785,1724257840758,-3490.85241648,0.00027448,2]
[335476786,1724257840767,-1000.0,0.00027516,2]
[335476787,1724257840776,-151.0,0.00027516,7]
[335476788,1724257840787,-176.621042,0.00027516,7]
[335476789,1724257840796,-176.621042,0.00027516,7]
[335476790,1724257840806,-151.0,0.00027516,7]
[335476791,1724257840816,-151.0,0.00027516,7]
[335476792,1724257840825,-150.112233,0.000276,10]
[335476793,1724257840834,-3566.74,0.000276,14]
[335476794,1724257840843,-256.9,0.0002781,2]
[335476795,1724257840854,-501.99527765,0.00027829,2]
[335476796,1724257840863,-500.0,0.00027907,2]
[335476797,1724257840872,-1480.28757557,0.00027945,120]
[335476798,1724257840883,-150.112235,0.00028,10]
[335476799,1724257840894,-369.21673832,0.00028,30]
[335476800,1724257840903,-1000.0,0.00028031,2]
[335476801,1724257840912,-1000.0,0.00028117,2]
[335476802,1724257840921,-151.0,0.00028117,7]
[335476803,1724257840931,-151.0,0.00028117,7]
[335476804,1724257840940,-151.0,0.00028117,7]
[335476805,1724257840949,-809.955,0.00028117,7]
[335476806,1724257840959,-809.955,0.00028117,7]
[335476807,1724257840970,-151.0,0.00028117,7]
[335476808,1724257840979,-151.0,0.00028117,7]
[335476809,1724257840989,-151.0,0.00028117,7]
[335476810,1724257840998,-1000.0,0.00028177,2]
[335476811,1724257841007,-150.112233,0.000284,9]
[335476812,1724257841016,-500.0,0.00028404,2]
[335476813,1724257841026,-688.29452569,0.00028493,2]
[335476814,1724257841035,-313.6271849,0.00028493,2]
[335476815,1724257841045,-1000.0,0.00028581,2]
[335476816,1724257841054,-4772.24505505,0.00028585,2]
[335476817,1724257841063,-1000.0,0.0002879,2]
[335476818,1724257841072,-150.112233,0.000288,7]
[335476819,1724257841083,-256.9,0.00028828,2]
[335476820,1724257841092,-1000.0,0.00028834,2]
[335476821,1724257841101,-1000.0,0.00028873,2]
[335476822,1724257841110,-500.0,0.00028892,2]
[335476823,1724257841119,-1000.0,0.0002896,2]
[335476824,1724257841129,-150.112233,0.000291,5]
[335476825,1724257841138,-3490.85241648,0.00029229,2]
[335476826,1724257841147,-1000.0,0.00029415,2]
[335476827,1724257841156,-500.0,0.00029504,2]
[335476828,1724257841165,-150.112233,0.000296,6]
[335476829,1724257841174,-500.0,0.0002969,2]
[335476830,1724257841184,-3566.74,0.000297,14]
[335476831,1724257841195,-500.0,0.00029789,2]
[335476832,1724257841205,-150.112233,0.000298,10]
[335476833,1724257841215,-256.9,0.00029845,2]
[335476834,1724257841225,-1000.0,0.00029888,2]
[335476835,1724257841235,-178.72751622,0.0003,5]
[335476836,1724257841247,-1000.0,0.0003,30]
[335476837,1724257841258,-462.06561287,0.0003,30]
[335476838,1724257841269,-504.19337631,0.0003,2]
[335476839,1724257841280,-495.0,0.0003,2]
[335476840,1724257841290,-500.0,0.00030038,7]
[335476841,1724257841300,-221482.4281,0.00030078,2]
[335476842,1724257841313,-37433.8279356,0.00030079,4]
[335476843,1724257841322,-151.0,0.00030089,7]
[335476844,1724257841333,-151.0,0.00030089,7]
[335476845,1724257841344,-151.0,0.00030089,7]
[335476846,1724257841355,-500.0,0.00030089,7]
[335476847,1724257841365,-151.0,0.00030089,7]
[335476848,1724257841374,-1000.0,0.00030095,7]
[335476849,1724257841386,-151.0,0.00030175,7]
[335476850,1724257841396,-151.0,0.00030175,7]
[335476851,1724257841406,-151.0,0.00030175,7]
[335476852,1724257841417,-809.955,0.00030175,7]
[335476853,1724257841427,-809.955,0.00030175,7]
[335476854,1724257841437,-151.0,0.00030175,7]
[335476855,1724257841447,-500.0,0.00030211,7]
[335476856,1724257841457,-5141.95181302,0.0003023,2]
[335476857,1724257841467,-500.0,0.00030257,7]
[335476858,1724257841477,-151.0,0.00030257,7]
[335476859,1724257841489,-151.0,0.00030257,7]
[335476860,1724257841499,-504.19337631,0.000303,2]
[335476861,1724257841511,-151.0,0.00030325,7]
[335476862,1724257841520,-151.0,0.00030325,7]
[335476863,1724257841530,-151.0,0.00030325,7]
[335476864,1724257841540,-151.0,0.00030325,7]
[335476865,1724257841551,-156.969698,0.00030325,7]
[335476866,1724257841561,-156.969698,0.00030325,7]
[335476867,1724257841573,-151.0,0.00030325,7]
[335476868,1724257841584,-198.659333,0.00030325,7]
[335476869,1724257841595,-151.0,0.00030325,7]
[335476870,1724257841606,-151.0,0.00030325,7]
[335476871,1724257841616,-151.0,0.00030325,7]
[335476872,1724257841627,-151.0,0.00030325,7]
[335476873,1724257841638,-151.0,0.00030325,7]
[335476874,1724257841647,-151.0,0.00030325,7]
[335476875,1724257841656,-150.112233,0.000304,8]
[335476876,1724257841665,-151.0,0.00030401,7]
[335476877,1724257841674,-176.621042,0.00030401,7]
[335476878,1724257841683,-176.621042,0.00030401,7]
[335476879,1724257841692,-151.0,0.00030401,7]
[335476880,1724257841701,-495.0,0.00030411,2]
[335476881,1724257841710,-5141.95181302,0.00030417,2]
[335476882,1724257841720,-150.112233,0.000305,8]
[335476883,1724257841729,-504.19337631,0.000306,2]
[335476884,1724257841738,-1000.0,0.00030689,7]
[335476885,1724257841747,-415.2483466,0.0003074,2]
[335476886,1724257841757,-150.0,0.00030797,2]
[335476887,1724257841766,-256.9,0.00030862,3]
[335476888,1724257841776,-5141.95181304,0.00030873,2]
[335476889,1724257841790,-151.0,0.00030896,7]
[335476890,1724257841800,-195.985204,0.00030896,7]
[335476891,1724257841809,-151.0,0.00030896,7]
[335476892,1724257841819,-809.955,0.00030896,7]
[335476893,1724257841829,-809.955,0.00030896,7]
[335476894,1724257841840,-151.0,0.00030896,7]
[335476895,1724257841851,-151.0,0.00030896,7]
[335476896,1724257841861,-187.172692,0.00030896,7]
[335476897,1724257841873,-74867.6558712,0.00030897,4]
[335476898,1724257841883,-604.7481129,0.000309,2]
[335476899,1724257841893,-153.0,0.00030902,2]
[335476900,1724257841904,-153.0,0.00030902,2]
[335476901,1724257841914,-153.0,0.00030902,2]
[335476902,1724257841923,-153.0,0.00030902,2]
[335476903,1724257841932,-153.0,0.00030902,2]
[335476904,1724257841943,-153.0,0.00030902,2]
[335476905,1724257841953,-153.0,0.00030902,2]
[335476906,1724257841962,-153.0,0.00030902,2]
[335476907,1724257841972,-153.0,0.00030902,2]
[335476908,1724257841981,-153.0,0.00030902,2]
[335476909,1724257841991,-153.0,0.00030902,2]
[335476910,1724257842001,-153.0,0.00030902,2]
[335476911,1724257842011,-153.0,0.00030902,2]
[335476912,1724257842022,-153.0,0.00030902,2]
[335476913,1724257842033,-153.0,0.00030902,2]
[335476914,1724257842043,-153.0,0.00030902,2]
[335476915,1724257842053,-153.0,0.00030902,2]
[335476916,1724257842065,-153.0,0.00030902,2]
[335476917,1724257842075,-153.0,0.00030902,2]
[335476918,1724257842086,-153.0,0.00030902,2]
[335476919,1724257842096,-153.0,0.00030902,2]
[335476920,1724257842106,-153.0,0.00030902,2]
[335476921,1724257842116,-153.0,0.00030902,2]
[335476922,1724257842126,-153.0,0.00030902,2]
[335476923,1724257842137,-153.0,0.00030902,2]
[335476924,1724257842147,-153.0,0.00030902,2]
[335476925,1724257842158,-153.0,0.00030902,2]
[335476926,1724257842168,-153.0,0.00030902,2]
[335476927,1724257842178,-153.0,0.00030902,2]
[335476928,1724257842189,-153.0,0.00030902,2]
[335476929,1724257842200,-153.0,0.00030902,2]
[335476930,1724257842210,-153.0,0.00030902,2]
[335476931,1724257842223,-153.0,0.00030902,2]
[335476932,1724257842234,-156.969698,0.00030906,7]
[335476933,1724257842244,-156.969698,0.00030906,7]
[335476934,1724257842254,-151.0,0.00030906,7]
[335476935,1724257842264,-151.0,0.00030906,7]
[335476936,1724257842274,-151.0,0.00030906,7]
[335476937,1724257842284,-151.0,0.00030906,7]
[335476938,1724257842296,-151.0,0.00030906,7]
[335476939,1724257842306,-151.0,0.00030906,7]
[335476940,1724257842317,-151.0,0.00030906,7]